[Event "*** Titled Tuesday Blitz"]
[Site "Chess.com"]
[Date "2021.02.02"]
[Round "6"]
[White "DenishevM"]
[Black "Tenamu"]
[Result "0-1"]
[WhiteElo "2550"]
[BlackElo "2411"]
[TimeControl "180+1"]
[EndTime "11:09:03 PST"]
[Termination "Tenamu won by resignation"]

1. Nf3 {[%clk 0:03:00.9]} 1... d5 {[%clk 0:02:55.7]} 2. b3 {[%clk 0:03:00.8]}
2... c5 {[%clk 0:02:54.8]} 3. Bb2 {[%clk 0:03:00.6]} 3... Nc6 {[%clk 0:02:52.7]}
4. e3 {[%clk 0:03:00.5]} 4... Nf6 {[%clk 0:02:51.8]} 5. d4 {[%clk 0:02:59.1]}
5... cxd4 {[%clk 0:02:50.6]} 6. Nxd4 {[%clk 0:03:00]} 6... g6 {[%clk 0:02:48.6]}
7. Be2 {[%clk 0:02:58.6]} 7... Bg7 {[%clk 0:02:48.3]} 8. O-O {[%clk 0:02:58.4]}
8... O-O {[%clk 0:02:48.5]} 9. Nd2 {[%clk 0:02:58.3]} 9... Re8 {[%clk
0:02:46.4]} 10. c4 {[%clk 0:02:57.6]} 10... e5 {[%clk 0:02:45.9]} 11. Nxc6
{[%clk 0:02:54.8]} 11... bxc6 {[%clk 0:02:46.8]} 12. cxd5 {[%clk 0:02:53.6]}
12... cxd5 {[%clk 0:02:47.7]} 13. Rc1 {[%clk 0:02:53.3]} 13... Bb7 {[%clk
0:02:46.9]} 14. Nb1 {[%clk 0:02:50.8]} 14... Re6 {[%clk 0:02:42.9]} 15. Nc3
{[%clk 0:02:50.1]} 15... a6 {[%clk 0:02:38]} 16. Na4 {[%clk 0:02:48.3]} 16...
Nd7 {[%clk 0:02:29.4]} 17. Bf3 {[%clk 0:02:17.2]} 17... e4 {[%clk 0:01:51.5]}
18. Bg4 {[%clk 0:02:10.4]} 18... f5 {[%clk 0:01:46.5]} 19. Bxg7 {[%clk
0:02:08.9]} 19... Kxg7 {[%clk 0:01:47]} 20. Be2 {[%clk 0:02:09.2]} 20... Rd6
{[%clk 0:00:49.4]} 21. Qd4+ {[%clk 0:01:54.9]} 21... Qf6 {[%clk 0:00:46.7]} 22.
Qxf6+ {[%clk 0:01:53.4]} 22... Kxf6 {[%clk 0:00:46.4]} 23. Rc7 {[%clk
0:01:54.3]} 23... Bc6 {[%clk 0:00:46.1]} 24. Nb2 {[%clk 0:01:28.1]} 24... Ne5
{[%clk 0:00:41]} 25. Rc1 {[%clk 0:01:25.4]} 25... Bb5 {[%clk 0:00:39.2]} 26. Kf1
{[%clk 0:01:21.6]} 26... d4 {[%clk 0:00:36.9]} 27. exd4 {[%clk 0:01:08.6]} 27...
Rxd4 {[%clk 0:00:37.8]} 28. Bc4 {[%clk 0:00:56]} 28... Rd2 {[%clk 0:00:24]} 29.
a4 {[%clk 0:00:39.1]} 29... Rxb2 {[%clk 0:00:22.8]} 30. axb5 {[%clk 0:00:39.3]}
30... axb5 {[%clk 0:00:23.7]} 31. Bxb5 {[%clk 0:00:28.3]} 31... Raa2 {[%clk
0:00:22.8]} 32. Kg1 {[%clk 0:00:26.4]} 32... Rxf2 {[%clk 0:00:21.8]} 33. Bf1
{[%clk 0:00:27.1]} 33... h5 {[%clk 0:00:20.1]} 34. Rb7 {[%clk 0:00:20.8]} 34...
Nd3 {[%clk 0:00:19.5]} 35. Rb6+ {[%clk 0:00:15.1]} 35... Kg5 {[%clk 0:00:19]}
36. Rd1 {[%clk 0:00:13.6]} 36... Nf4 {[%clk 0:00:17.4]} 37. Rdd6 {[%clk
0:00:11.1]} 37... Kg4 {[%clk 0:00:12.1]} 38. g3 {[%clk 0:00:06.1]} 38... Kf3
{[%clk 0:00:09.4]} 39. gxf4 {[%clk 0:00:05.1]} 39... Rxf1+ {[%clk 0:00:09.8]}
40. Kxf1 {[%clk 0:00:03.4]} 40... Ra1+ {[%clk 0:00:10.2]} 0-1

[Event "*** Titled Tuesday Blitz"]
[Site "Chess.com"]
[Date "2021.02.02"]
[Round "6"]
[White "nocnypako"]
[Black "zacachess"]
[Result "0-1"]
[WhiteElo "2567"]
[BlackElo "2434"]
[TimeControl "180+1"]
[EndTime "11:09:06 PST"]
[Termination "zacachess won by checkmate"]

1. d4 {[%clk 0:03:00.9]} 1... Nf6 {[%clk 0:02:59.8]} 2. c4 {[%clk 0:03:00.6]}
2... g6 {[%clk 0:03:00]} 3. Nc3 {[%clk 0:03:00.7]} 3... Bg7 {[%clk 0:03:00.5]}
4. e4 {[%clk 0:02:59.8]} 4... d6 {[%clk 0:03:01]} 5. Nf3 {[%clk 0:02:59]} 5...
O-O {[%clk 0:03:01.5]} 6. Be2 {[%clk 0:02:59.6]} 6... e5 {[%clk 0:03:01.2]} 7.
O-O {[%clk 0:03:00]} 7... Nc6 {[%clk 0:03:00.9]} 8. d5 {[%clk 0:02:59.8]} 8...
Ne7 {[%clk 0:03:01.5]} 9. Ne1 {[%clk 0:02:59.1]} 9... Nd7 {[%clk 0:03:01.6]} 10.
Be3 {[%clk 0:02:54.2]} 10... f5 {[%clk 0:03:01.8]} 11. f3 {[%clk 0:02:51.5]}
11... Nf6 {[%clk 0:03:01.6]} 12. Rc1 {[%clk 0:02:46.9]} 12... f4 {[%clk
0:02:57.8]} 13. Bf2 {[%clk 0:02:46.1]} 13... g5 {[%clk 0:02:58.1]} 14. c5 {[%clk
0:02:46.2]} 14... Ne8 {[%clk 0:02:53.2]} 15. cxd6 {[%clk 0:02:41.7]} 15... cxd6
{[%clk 0:02:54.1]} 16. Nb5 {[%clk 0:02:40.4]} 16... b6 {[%clk 0:02:29.5]} 17.
Nd3 {[%clk 0:02:30.2]} 17... Ng6 {[%clk 0:02:28.8]} 18. Nb4 {[%clk 0:02:29.6]}
18... a6 {[%clk 0:01:48.9]} 19. Na3 {[%clk 0:02:26.1]} 19... b5 {[%clk
0:01:45.3]} 20. Nc6 {[%clk 0:02:26]} 20... Qf6 {[%clk 0:01:45.1]} 21. Nc2 {[%clk
0:02:20]} 21... Rf7 {[%clk 0:01:42.7]} 22. a4 {[%clk 0:02:14]} 22... bxa4 {[%clk
0:01:37.8]} 23. N2b4 {[%clk 0:02:10]} 23... h5 {[%clk 0:01:32.6]} 24. Qxa4
{[%clk 0:02:09.3]} 24... Bf8 {[%clk 0:01:14.8]} 25. Qa5 {[%clk 0:02:02.2]} 25...
Bd7 {[%clk 0:01:10]} 26. Qb6 {[%clk 0:01:48.1]} 26... Rg7 {[%clk 0:01:04.4]} 27.
Qb7 {[%clk 0:01:47.6]} 27... Rc8 {[%clk 0:00:57.6]} 28. Bxa6 {[%clk 0:01:39.1]}
28... g4 {[%clk 0:00:56.8]} 29. Qxd7 {[%clk 0:01:38.9]} 29... Rxd7 {[%clk
0:00:47.2]} 30. Bxc8 {[%clk 0:01:38.5]} 30... Rg7 {[%clk 0:00:44.8]} 31. fxg4
{[%clk 0:01:32.1]} 31... Nh4 {[%clk 0:00:44.4]} 32. h3 {[%clk 0:00:59.5]} 32...
Qg5 {[%clk 0:00:31.6]} 33. Be6+ {[%clk 0:00:38.9]} 33... Kh7 {[%clk 0:00:22.9]}
34. Nb8 {[%clk 0:00:28.8]} 34... Nf6 {[%clk 0:00:21.9]} 35. Rc8 {[%clk
0:00:21.3]} 35... hxg4 {[%clk 0:00:11.4]} 36. Bxh4 {[%clk 0:00:17.1]} 36... Qxh4
{[%clk 0:00:12.3]} 37. Rxf8 {[%clk 0:00:12.3]} 37... gxh3 {[%clk 0:00:10.2]} 38.
Bf5+ {[%clk 0:00:11.7]} 38... Kh6 {[%clk 0:00:08.4]} 39. Rh8+ {[%clk 0:00:07.8]}
39... Nh7 {[%clk 0:00:08.9]} 40. Rf2 {[%clk 0:00:07.2]} 40... h2+ {[%clk
0:00:07.9]} 41. Kh1 {[%clk 0:00:06.4]} 41... Qxf2 {[%clk 0:00:08.1]} 42. Kxh2
{[%clk 0:00:05.5]} 42... Qg3+ {[%clk 0:00:07.9]} 43. Kg1 {[%clk 0:00:04]} 43...
Qxg2# {[%clk 0:00:07.7]} 0-1

[Event "*** Titled Tuesday Blitz"]
[Site "Chess.com"]
[Date "2021.02.02"]
[Round "6"]
[White "SkippingLaptop"]
[Black "tylityli"]
[Result "0-1"]
[WhiteElo "2074"]
[BlackElo "2319"]
[TimeControl "180+1"]
[EndTime "11:09:06 PST"]
[Termination "tylityli won on time"]

1. c4 {[%clk 0:03:00.9]} 1... Nf6 {[%clk 0:02:28.9]} 2. g3 {[%clk 0:02:59.4]}
2... c5 {[%clk 0:02:28]} 3. Bg2 {[%clk 0:02:58.7]} 3... d5 {[%clk 0:02:28.9]} 4.
cxd5 {[%clk 0:02:57.6]} 4... Nxd5 {[%clk 0:02:29.8]} 5. Nc3 {[%clk 0:02:57.7]}
5... Nc7 {[%clk 0:02:29.8]} 6. Nf3 {[%clk 0:02:55]} 6... Nc6 {[%clk 0:02:28.6]}
7. O-O {[%clk 0:02:54.3]} 7... e5 {[%clk 0:02:27.7]} 8. d3 {[%clk 0:02:53.2]}
8... Be7 {[%clk 0:02:27.9]} 9. Be3 {[%clk 0:02:52.6]} 9... O-O {[%clk
0:02:26.5]} 10. Nd2 {[%clk 0:02:50.3]} 10... Nd4 {[%clk 0:02:23.2]} 11. Nc4
{[%clk 0:02:46.7]} 11... f6 {[%clk 0:02:22]} 12. Na5 {[%clk 0:02:42]} 12... Rb8
{[%clk 0:02:20.5]} 13. Rc1 {[%clk 0:02:30.6]} 13... Nce6 {[%clk 0:02:17]} 14.
Nc4 {[%clk 0:02:24.5]} 14... b5 {[%clk 0:02:12.8]} 15. Nd2 {[%clk 0:02:20]}
15... Bb7 {[%clk 0:02:12.2]} 16. Bxb7 {[%clk 0:02:18.1]} 16... Rxb7 {[%clk
0:02:12]} 17. Bxd4 {[%clk 0:02:09.9]} 17... cxd4 {[%clk 0:02:05.7]} 18. Nce4
{[%clk 0:02:08.9]} 18... Kh8 {[%clk 0:02:03.8]} 19. Qb3 {[%clk 0:02:06.5]} 19...
Qd7 {[%clk 0:02:02.2]} 20. f4 {[%clk 0:01:57.3]} 20... a5 {[%clk 0:01:53]} 21.
fxe5 {[%clk 0:01:53]} 21... a4 {[%clk 0:01:48.2]} 22. Qc2 {[%clk 0:01:46.8]}
22... fxe5 {[%clk 0:01:47.5]} 23. Rxf8+ {[%clk 0:01:45.5]} 23... Bxf8 {[%clk
0:01:47.4]} 24. Qc8 {[%clk 0:01:45]} 24... Kg8 {[%clk 0:01:35.9]} 25. Nf3 {[%clk
0:01:26.7]} 25... Qe7 {[%clk 0:01:09.6]} 26. Nxe5 {[%clk 0:01:17.9]} 26... Rc7
{[%clk 0:01:08.1]} 27. Rxc7 {[%clk 0:01:13.5]} 27... Nxc7 {[%clk 0:01:09]} 28.
Nd7 {[%clk 0:01:07.7]} 28... Ne6 {[%clk 0:01:01.8]} 29. Nxf8 {[%clk 0:01:00.2]}
29... Nxf8 {[%clk 0:01:02.7]} 30. Qf5 {[%clk 0:00:56.3]} 30... Qb4 {[%clk
0:00:58.3]} 31. Qd5+ {[%clk 0:00:50.7]} 31... Kh8 {[%clk 0:00:57.1]} 32. Kf2
{[%clk 0:00:46.2]} 32... h6 {[%clk 0:00:55.9]} 33. Nd6 {[%clk 0:00:40.9]} 33...
Qxb2 {[%clk 0:00:46.7]} 34. Nf7+ {[%clk 0:00:33.5]} 34... Kh7 {[%clk 0:00:45.1]}
35. Qf5+ {[%clk 0:00:30.9]} 35... Kg8 {[%clk 0:00:43.3]} 36. Ne5 {[%clk
0:00:19.3]} 36... Qxa2 {[%clk 0:00:39.9]} 37. g4 {[%clk 0:00:12.8]} 37... Qe6
{[%clk 0:00:37.4]} 38. Qf4 {[%clk 0:00:11.2]} 38... Qd5 {[%clk 0:00:34]} 39. h4
{[%clk 0:00:08.7]} 39... a3 {[%clk 0:00:33.3]} 40. g5 {[%clk 0:00:08.7]} 40...
hxg5 {[%clk 0:00:30.1]} 41. hxg5 {[%clk 0:00:09.6]} 41... a2 {[%clk 0:00:27.7]}
42. g6 {[%clk 0:00:09.9]} 42... a1=Q {[%clk 0:00:24.6]} 43. Qh4 {[%clk 0:00:07]}
43... Qxe5 {[%clk 0:00:20.9]} 44. Qh7+ {[%clk 0:00:04]} 44... Nxh7 {[%clk
0:00:20.4]} 45. gxh7+ {[%clk 0:00:04.2]} 45... Kxh7 {[%clk 0:00:21.3]} 0-1

[Event "*** Titled Tuesday Blitz"]
[Site "Chess.com"]
[Date "2021.02.02"]
[Round "6"]
[White "PopMilan95"]
[Black "Saxar85"]
[Result "0-1"]
[WhiteElo "2604"]
[BlackElo "2803"]
[TimeControl "180+1"]
[EndTime "11:09:07 PST"]
[Termination "Saxar85 won by resignation"]

1. e4 {[%clk 0:03:00.9]} 1... e5 {[%clk 0:02:21.5]} 2. d4 {[%clk 0:02:56.4]}
2... exd4 {[%clk 0:02:20.1]} 3. Qxd4 {[%clk 0:02:56.5]} 3... Nc6 {[%clk
0:02:19.7]} 4. Qe3 {[%clk 0:02:57]} 4... Nf6 {[%clk 0:02:18.8]} 5. Nc3 {[%clk
0:02:57.4]} 5... g6 {[%clk 0:02:18.4]} 6. Bd2 {[%clk 0:02:52]} 6... Bg7 {[%clk
0:02:17.4]} 7. O-O-O {[%clk 0:02:52.3]} 7... O-O {[%clk 0:02:16.8]} 8. Bc4
{[%clk 0:02:52.8]} 8... Re8 {[%clk 0:02:14.5]} 9. f3 {[%clk 0:02:23.2]} 9... Na5
{[%clk 0:02:13.1]} 10. Bb3 {[%clk 0:02:14.4]} 10... Nxb3+ {[%clk 0:02:09.8]} 11.
axb3 {[%clk 0:02:15.3]} 11... d5 {[%clk 0:02:09.7]} 12. Qf2 {[%clk 0:02:08.8]}
12... d4 {[%clk 0:02:01.9]} 13. Bg5 {[%clk 0:01:49.8]} 13... c5 {[%clk
0:01:48.6]} 14. Qh4 {[%clk 0:01:43.7]} 14... h6 {[%clk 0:01:13.8]} 15. Bxf6
{[%clk 0:00:33.4]} 15... Bxf6 {[%clk 0:01:12.4]} 16. Qg3 {[%clk 0:00:33.9]}
16... Be6 {[%clk 0:01:11.2]} 17. e5 {[%clk 0:00:26.5]} 17... Bg7 {[%clk
0:00:59.8]} 18. Ne4 {[%clk 0:00:26.3]} 18... Bf5 {[%clk 0:00:44]} 19. Qf4 {[%clk
0:00:08.8]} 19... Rxe5 {[%clk 0:00:37.5]} 20. Ne2 {[%clk 0:00:05.8]} 20... Bxe4
{[%clk 0:00:35.5]} 21. fxe4 {[%clk 0:00:06.7]} 21... Qe7 {[%clk 0:00:35.3]} 22.
Ng3 {[%clk 0:00:05.4]} 22... a5 {[%clk 0:00:34.5]} 23. Rhf1 {[%clk 0:00:02.3]}
23... a4 {[%clk 0:00:34.4]} 24. bxa4 {[%clk 0:00:02.8]} 24... Rxa4 {[%clk
0:00:33.6]} 25. b3 {[%clk 0:00:01.7]} 25... Ra8 {[%clk 0:00:33.3]} 26. Kd2
{[%clk 0:00:01.7]} 26... c4 {[%clk 0:00:32.6]} 27. bxc4 {[%clk 0:00:01.9]} 27...
Qb4+ {[%clk 0:00:32.2]} 28. Ke2 {[%clk 0:00:02.6]} 28... Qxc4+ {[%clk
0:00:32.3]} 29. Kf2 {[%clk 0:00:03.2]} 29... Qxc2+ {[%clk 0:00:31.3]} 30. Kg1
{[%clk 0:00:03.9]} 30... Qc7 {[%clk 0:00:29.9]} 31. Rxd4 {[%clk 0:00:02.9]}
31... Qe7 {[%clk 0:00:28.5]} 32. Rd5 {[%clk 0:00:02.6]} 32... h5 {[%clk
0:00:24.6]} 33. Kh1 {[%clk 0:00:02.5]} 33... b5 {[%clk 0:00:22.6]} 34. Qf3
{[%clk 0:00:02]} 34... b4 {[%clk 0:00:21.5]} 35. Ne2 {[%clk 0:00:02.3]} 35...
Rxe4 {[%clk 0:00:19.5]} 36. Nf4 {[%clk 0:00:02.4]} 36... Re8 {[%clk 0:00:18.3]}
37. Rdd1 {[%clk 0:00:02.1]} 37... Qf6 {[%clk 0:00:17]} 38. Qg3 {[%clk
0:00:01.2]} 38... Qe5 {[%clk 0:00:16]} 39. Qf3 {[%clk 0:00:01.5]} 39... Re3
{[%clk 0:00:15]} 40. Qb7 {[%clk 0:00:01.5]} 40... Re7 {[%clk 0:00:12.9]} 41.
Qa8+ {[%clk 0:00:02.1]} 41... Kh7 {[%clk 0:00:13.2]} 42. Qd5 {[%clk 0:00:02.1]}
42... b3 {[%clk 0:00:12.3]} 43. Qc4 {[%clk 0:00:01.9]} 43... b2 {[%clk
0:00:10.3]} 44. Qc1 {[%clk 0:00:02.7]} 0-1

[Event "*** Titled Tuesday Blitz"]
[Site "Chess.com"]
[Date "2021.02.02"]
[Round "6"]
[White "Gusarov91"]
[Black "KyronGriffith"]
[Result "1/2-1/2"]
[WhiteElo "1256"]
[BlackElo "2514"]
[TimeControl "180+1"]
[EndTime "11:09:07 PST"]
[Termination "Game drawn - insufficient material"]

1. d4 {[%clk 0:02:59.8]} 1... Nf6 {[%clk 0:02:47.3]} 2. Nf3 {[%clk 0:02:59.6]}
2... e6 {[%clk 0:02:43.5]} 3. c4 {[%clk 0:02:59.7]} 3... c5 {[%clk 0:02:43.1]}
4. g3 {[%clk 0:02:59.6]} 4... b6 {[%clk 0:02:41.5]} 5. Bg2 {[%clk 0:02:57.2]}
5... Bb7 {[%clk 0:02:41.9]} 6. dxc5 {[%clk 0:02:57.7]} 6... Bxc5 {[%clk
0:02:40.6]} 7. O-O {[%clk 0:02:57.6]} 7... O-O {[%clk 0:02:40.5]} 8. a3 {[%clk
0:02:57.8]} 8... Be7 {[%clk 0:02:36.5]} 9. b4 {[%clk 0:02:57.1]} 9... d6 {[%clk
0:02:36.7]} 10. Bb2 {[%clk 0:02:57.2]} 10... Nbd7 {[%clk 0:02:36.9]} 11. Nbd2
{[%clk 0:02:57.5]} 11... Qc7 {[%clk 0:02:37.3]} 12. Qb3 {[%clk 0:02:57.2]} 12...
Rac8 {[%clk 0:02:37.4]} 13. Rac1 {[%clk 0:02:57]} 13... Qb8 {[%clk 0:02:37.8]}
14. Rfd1 {[%clk 0:02:54.2]} 14... Rfd8 {[%clk 0:02:36.9]} 15. h3 {[%clk
0:02:49.5]} 15... Qa8 {[%clk 0:02:35]} 16. g4 {[%clk 0:02:48.4]} 16... h6 {[%clk
0:02:32.6]} 17. Nf1 {[%clk 0:02:46.6]} 17... Nf8 {[%clk 0:02:29.1]} 18. Ng3
{[%clk 0:02:45.9]} 18... Ng6 {[%clk 0:02:28.1]} 19. Qe3 {[%clk 0:02:39.3]} 19...
d5 {[%clk 0:02:23.2]} 20. g5 {[%clk 0:02:33.4]} 20... hxg5 {[%clk 0:02:22.5]}
21. Nxg5 {[%clk 0:02:33.7]} 21... dxc4 {[%clk 0:02:18.1]} 22. Rxd8+ {[%clk
0:02:32.4]} 22... Rxd8 {[%clk 0:02:17.6]} 23. Bxb7 {[%clk 0:02:24.7]} 23... Qxb7
{[%clk 0:02:18.5]} 24. Rxc4 {[%clk 0:02:22.4]} 24... Rd1+ {[%clk 0:02:16.6]} 25.
Kh2 {[%clk 0:02:22.5]} 25... Bd6 {[%clk 0:02:11.6]} 26. Qf3 {[%clk 0:01:58.8]}
26... Qxf3 {[%clk 0:01:35.9]} 27. Rc8+ {[%clk 0:01:58.2]} 27... Nf8 {[%clk
0:01:32.6]} 28. Nxf3 {[%clk 0:01:57.8]} 28... Ne4 {[%clk 0:01:27.4]} 29. Kg2
{[%clk 0:01:40.4]} 29... Nxg3 {[%clk 0:01:14.4]} 30. fxg3 {[%clk 0:01:41.3]}
30... Be7 {[%clk 0:01:09.4]} 31. Rc7 {[%clk 0:01:37.5]} 31... Rd7 {[%clk
0:01:09.8]} 32. Rc8 {[%clk 0:01:36.9]} 32... a5 {[%clk 0:01:09.5]} 33. bxa5
{[%clk 0:01:34.6]} 33... bxa5 {[%clk 0:01:10.4]} 34. a4 {[%clk 0:01:27.7]} 34...
Rb7 {[%clk 0:01:10.1]} 35. Bc3 {[%clk 0:01:26.4]} 35... Bb4 {[%clk 0:01:10.5]}
36. Bd4 {[%clk 0:01:23.6]} 36... f6 {[%clk 0:01:10]} 37. Bc5 {[%clk 0:01:22]}
37... Bxc5 {[%clk 0:01:07.9]} 38. Rxc5 {[%clk 0:01:22.9]} 38... Ra7 {[%clk
0:01:05.4]} 39. Nd4 {[%clk 0:01:22.9]} 39... Kf7 {[%clk 0:01:05.8]} 40. Nc6
{[%clk 0:01:21.5]} 40... Ra6 {[%clk 0:01:01.1]} 41. Nxa5 {[%clk 0:01:13.2]}
41... Nd7 {[%clk 0:01:01]} 42. Rb5 {[%clk 0:01:07.9]} 42... g5 {[%clk
0:00:52.7]} 43. h4 {[%clk 0:01:05.5]} 43... gxh4 {[%clk 0:00:52.6]} 44. gxh4
{[%clk 0:01:05.7]} 44... Kg6 {[%clk 0:00:50.2]} 45. Kg3 {[%clk 0:00:59.2]} 45...
Ne5 {[%clk 0:00:50.6]} 46. h5+ {[%clk 0:00:50.4]} 46... Kf5 {[%clk 0:00:37.5]}
47. e3 {[%clk 0:00:47.1]} 47... Ra8 {[%clk 0:00:37.5]} 48. Nc6 {[%clk
0:00:32.7]} 48... Rxa4 {[%clk 0:00:32.3]} 49. Nd4+ {[%clk 0:00:29.9]} 49... Kg5
{[%clk 0:00:30.9]} 50. Nxe6+ {[%clk 0:00:29.8]} 50... Kxh5 {[%clk 0:00:29.8]}
51. Nf4+ {[%clk 0:00:30]} 51... Kg5 {[%clk 0:00:29.7]} 52. Nd5 {[%clk
0:00:28.4]} 52... Rg4+ {[%clk 0:00:27.1]} 53. Kf2 {[%clk 0:00:28.4]} 53... Ra4
{[%clk 0:00:27.7]} 54. Rb6 {[%clk 0:00:26.8]} 54... Ra2+ {[%clk 0:00:21.3]} 55.
Kg3 {[%clk 0:00:26.3]} 55... Ra3 {[%clk 0:00:21.9]} 56. Rxf6 {[%clk 0:00:21]}
56... Rxe3+ {[%clk 0:00:21.2]} 57. Nxe3 {[%clk 0:00:19.2]} 57... Kxf6 {[%clk
0:00:21.7]} 1/2-1/2

[Event "*** Titled Tuesday Blitz"]
[Site "Chess.com"]
[Date "2021.02.02"]
[Round "6"]
[White "dretch"]
[Black "Vugar_Manafov"]
[Result "1-0"]
[WhiteElo "2844"]
[BlackElo "2659"]
[TimeControl "180+1"]
[EndTime "11:09:08 PST"]
[Termination "dretch won by resignation"]

1. d4 {[%clk 0:03:00.9]} 1... Nf6 {[%clk 0:03:00.9]} 2. c4 {[%clk 0:03:00.8]}
2... e6 {[%clk 0:03:00.5]} 3. Nc3 {[%clk 0:03:01]} 3... Bb4 {[%clk 0:02:59]} 4.
Qc2 {[%clk 0:03:01.4]} 4... O-O {[%clk 0:02:59]} 5. e4 {[%clk 0:03:00.4]} 5...
d6 {[%clk 0:02:59.4]} 6. a3 {[%clk 0:02:59.4]} 6... Bxc3+ {[%clk 0:02:59]} 7.
bxc3 {[%clk 0:03:00.3]} 7... e5 {[%clk 0:02:59.4]} 8. Bd3 {[%clk 0:03:01]} 8...
Nc6 {[%clk 0:02:57.2]} 9. Ne2 {[%clk 0:03:01.4]} 9... h6 {[%clk 0:02:52.4]} 10.
O-O {[%clk 0:03:00.5]} 10... Re8 {[%clk 0:02:48.2]} 11. f4 {[%clk 0:02:58.5]}
11... exd4 {[%clk 0:02:19.3]} 12. cxd4 {[%clk 0:02:57.1]} 12... Bg4 {[%clk
0:02:19.7]} 13. Bb2 {[%clk 0:02:38.8]} 13... Qd7 {[%clk 0:01:40]} 14. Ng3 {[%clk
0:02:30.4]} 14... h5 {[%clk 0:01:33.9]} 15. d5 {[%clk 0:02:26.9]} 15... Ne7
{[%clk 0:01:30.8]} 16. e5 {[%clk 0:02:17.1]} 16... Nfxd5 {[%clk 0:01:27.4]} 17.
cxd5 {[%clk 0:02:14.8]} 17... Nxd5 {[%clk 0:01:28.2]} 18. Bh7+ {[%clk 0:02:08]}
18... Kh8 {[%clk 0:01:27]} 19. Bf5 {[%clk 0:02:08.6]} 19... Bxf5 {[%clk
0:01:22.1]} 20. Qxf5 {[%clk 0:02:08.2]} 20... Qxf5 {[%clk 0:01:21.7]} 21. Nxf5
{[%clk 0:02:09.1]} 21... dxe5 {[%clk 0:01:20.4]} 22. fxe5 {[%clk 0:02:09.4]}
22... Re6 {[%clk 0:01:15.8]} 23. Ng3 {[%clk 0:01:59.6]} 23... h4 {[%clk
0:01:11.1]} 24. Ne4 {[%clk 0:01:57.9]} 24... Kg8 {[%clk 0:01:11.4]} 25. Ng5
{[%clk 0:01:50.9]} 25... Rg6 {[%clk 0:00:59.4]} 26. Nf3 {[%clk 0:01:33.9]} 26...
h3 {[%clk 0:00:40.9]} 27. g3 {[%clk 0:01:33.6]} 27... c6 {[%clk 0:00:40.7]} 28.
Rf2 {[%clk 0:01:24.6]} 28... Re8 {[%clk 0:00:40.1]} 29. Rd1 {[%clk 0:01:21.9]}
29... Re7 {[%clk 0:00:30.9]} 30. Rd4 {[%clk 0:01:19.3]} 30... Rh6 {[%clk
0:00:23.2]} 31. Rg4 {[%clk 0:01:14.1]} 31... Ne3 {[%clk 0:00:17.1]} 32. Ra4
{[%clk 0:01:08.6]} 32... a6 {[%clk 0:00:16.4]} 33. Bc1 {[%clk 0:01:08.4]} 33...
Nd1 {[%clk 0:00:09.6]} 34. Bxh6 {[%clk 0:01:05.8]} 34... Nxf2 {[%clk 0:00:09.6]}
35. Bg5 {[%clk 0:01:00.2]} 35... f6 {[%clk 0:00:09.3]} 36. Kxf2 {[%clk
0:00:55.6]} 36... fxg5 {[%clk 0:00:08.6]} 37. Re4 {[%clk 0:00:55.7]} 37... Kf7
{[%clk 0:00:05.9]} 38. Nxg5+ {[%clk 0:00:56]} 38... Kg6 {[%clk 0:00:06.8]} 39.
Nxh3 {[%clk 0:00:55.4]} 39... Kf5 {[%clk 0:00:07.4]} 40. Kf3 {[%clk 0:00:50.9]}
40... Rxe5 {[%clk 0:00:07.3]} 41. g4+ {[%clk 0:00:51.2]} 41... Kf6 {[%clk
0:00:05.2]} 42. Rxe5 {[%clk 0:00:49.3]} 42... Kxe5 {[%clk 0:00:06.1]} 43. Nf4
{[%clk 0:00:49.3]} 43... c5 {[%clk 0:00:06.1]} 44. h4 {[%clk 0:00:47.2]} 44...
b5 {[%clk 0:00:04.1]} 45. Ke3 {[%clk 0:00:46.5]} 45... c4 {[%clk 0:00:04.1]} 46.
Ne2 {[%clk 0:00:45.4]} 46... a5 {[%clk 0:00:04.3]} 47. Nd4 {[%clk 0:00:45.6]}
47... b4 {[%clk 0:00:04.8]} 48. axb4 {[%clk 0:00:46]} 48... a4 {[%clk
0:00:03.5]} 49. Nb5 {[%clk 0:00:44.6]} 49... Kd5 {[%clk 0:00:03.2]} 50. Nc3+
{[%clk 0:00:44.3]} 50... Kc6 {[%clk 0:00:03.6]} 51. Kd4 {[%clk 0:00:44]} 51...
a3 {[%clk 0:00:03.6]} 52. Kxc4 {[%clk 0:00:44]} 52... g5 {[%clk 0:00:03.8]} 53.
h5 {[%clk 0:00:43.5]} 53... Kd6 {[%clk 0:00:04.1]} 54. h6 {[%clk 0:00:43.6]}
54... a2 {[%clk 0:00:04.7]} 55. Nxa2 {[%clk 0:00:39.1]} 1-0